Workbook

Sheet Main Table
A2: User Input
A3: Calculated
A4: Constant
F5: Comment
B6: Input voltage | C6: Vin | D6: 48 | E6: V
B7: Max current per channel | C7: Iout_Full Scale/string | D7: 320 | E7: mA
B8: channel count | D8: 1
B9: Max output current | C9: Iout_Full Scale total | D9: =D8*D7 -> 320 | E9: mA
B10: PWM dimming duty | C10: Dpwm | D10: 1
B11: Analog dimming duty | C11: Dadim | D11: 1
B12: Actual output current | C12: Iout | D12: =D10*D11*D9 -> 320 | E12: mA
B13: LED number # | C13: LED count/string | D13: 5
B14: LED forward voltage | C14: LED Vf | D14: 3.54 | E14: V
B15: Total LED Voltage | C15: Vled | D15: =D14*D13 -> 17.7 | E15: V
B16: Diode forward voltage | C16: VD | D16: 0.74 | E16: V
B17: Switching frequency | C17: Fsw | D17: 1 | E17: MHz
B18: switching frequency resistor | C18: RFET | D18: ='frequency setting'!F20 -> 21 | E18: kΩ
B19: Suggested power Inductor | C19: L | D19: =IF(D17<1, 22,10) -> 10 | E19: uH
B20: Actual power Inductor | C20: Lact | D20: 22 | E20: uH
B21: Actual power Inductor ESR | C21: RL | D21: 0.01233 | E21: Ω
B22: Inductor peak current | C22: IL_peak | D22: =IF(ff>=0,Ipeak_ccm,Buck_Cal!Ipeak) -> 0.5872375827 | E22: A
B23: Inductor ripple current | C23: IL_rip_pp | D23: =IF(ff>=0,Buck_Cal!Ipp,Buck_Cal!Ipeak) -> 0.5344751654 | E23: A
B24: recommended inductor saturation current | C24: IL_sat | D24: =(D22+D23/2)*1.5 -> 1.281712748 | E24: A
B25: Sense resistor | C25: Rse | D25: =1000*1000*0.2/D12 -> 625 | E25: mΩ
B26: Actual sense resistor | C26: Rse_actual | D26: 625 | E26: mΩ
B27: Power rating of sense resistor min. | D27: =Buck_Cal!M12 -> 0.07887831783 | E27: W
B28: UVP upper resistor | C28: Rup1 | D28: 50 | E28: kΩ
B29: UVP lower resistor | C29: Rup2 | D29: 40 | E29: kΩ
B30: UVP verification | D30: =IF((D6-D15)*(D29/(D29+D28))>1.2*(1+5%), "PASS", "FAIL") -> PASS
B31: Device package | D31: VSON
B32: Device power loss | C32: Ploss | D32: =Buck_Cal!M15 -> 0.8097307986 | E32: W
B33: Device thermal rise | C33: Trise | D33: =Buck_Cal!M16 -> 24.29192396 | E33: deg
B34: Thermal foldback | C34: Ttemp | D34: 105 | E34: deg | F34: TI recommended at least 25deg margin
B35: Thermal foldback | C35: Rtemp | D35: ='thermal foldback'!Z5 -> 46.1442323 | E35: kΩ
B36: Efficiency | C36: η | D36: =Buck_Cal!M20 -> 0.8220135119 | F36: system efficiency
B37: Input capacitance | C37: Cin | D37: 15 | E37: uF | F37: TI recommended at least 15uF MLCC
B38: Output caps | C38: Cout | D38: 5 | E38: uF
B39: Output caps ESR | C39: ESR | D39: 0.01 | E39: W
B40: desired output ripple | C40: Vrip_d | D40: 0.1 | E40: V
B41: calculated output ripple | C41: Vrip_c | D41: =IF(ff>=0,Buck_Cal!E12,Buck_Cal!J12) -> 0.01474367834 | E41: V | F41: calculated output ripple shuold be smaller than desired output ripple

Sheet Buck_Cal (hidden)
R1: Mos Off time
R2: 2.06e-08
C3: Ambient temperature | D3: VIN (V) | E3: VO (V) | F3: RL (Ω) | G3: RDS(ON) | H3: Rsense | I3: RD (Ω) | J3: VD (V) | K3: ILOAD (A) | L3: L (H) | M3: FS (Hz) | N3: Vhead(V) | O3: TS | P3: Mode | Q3: θJA_EVM | R3: MOS On time(s) | S3: θBA | T3: Cout(F) | U3: ESR
C4: 25 | D4: ='Main Table'!D6 -> 48 | E4: ='Main Table'!D15 -> 17.7 | F4: ='Main Table'!D21 -> 0.01233 | G4: 0.15 | H4: ='Main Table'!D26/1000 -> 0.625 | I4: 0.01 | J4: ='Main Table'!D16 -> 0.74 | K4: ='Main Table'!D12/1000 -> 0.32 | L4: ='Main Table'!D20*0.000001 -> 2.2e-05 | M4: ='Main Table'!D17*1000000 -> 1000000 | N4: 0 | O4: =1/FS -> 1e-06 | P4: =IF(Ivalley>=0,"CCM","DCM") -> CCM | Q4: =IF('Main Table'!D31="VSON",30,IF('Main Table'!D31="WSON",47.4, 154)) -> 30 | R4: 2.46e-08 | T4: 4.7e-06 | U4: 0.01 | W4: CCM
L5: Thermal-MOS-(Dynamic) (W) | M5: =IF(Ivalley>=0, 0.5*(VIN+VD)*Ivalley*FS*MOS_On_time+0.5*(VIN+VD)*Ipeak_ccm*FS*Mos_Off_time,0.5*(VIN+VD)*Ipeak*FS*Mos_Off_time) -> 0.3264373604 | W5: IL | X5: Iin | Y5: D | Z5: Ipp | AA5: Ivalley | AB5: I_LRMS | AC5: MOS Dyn Loss | AD5: MOS Const | AE5: Diode loss | AF5: Inductor loss | AG5: Rsense loss
A6: Vin max | B6: 65 | D6: D | E6: =Y26 -> 0.3880677768 | I6: D1 | J6: =X46 -> 0.4209594335 | L6: Thermal-MOS-(Constant) (W) | M6: =IF(Ivalley>=0,(ILOAD^2+Ipp^2/12)*RDS_ON*D_ccm,(ILOAD^2+Ipeak^2/12)*RDS_ON*D1_) -> 0.007346432026 | O6: Interval | P6: t | Q6: t | R6: Current | V6: 1 | W6: =ILOAD -> 0.32 | X6: =ILOAD*(VO+VD)/(VIN+VD) -> 0.1210668855 | Y6: =X6/ILOAD -> 0.3783340172 | Z6: =(VIN-VO)*Y6/L/FS -> 0.5210691237 | AA6: =IF(W6-Z6/2>0, W6-Z6/2,0) -> 0.05946543813 | AB6: =ILOAD*(1+(Z6^2/ILOAD^2)/12)^0.5 -> 0.3535902798 | AC6: =(VIN+VD)*AA6*FS*R$4 -> 0.07129929818 | AD6: =AB6^2*RDS_ON*(Y6) -> 0.007095243205 | AE6: =(AB6*AB6*RD+VD*W6)*(1-Y6) -> 0.1479877494 | AF6: =RL*AB6^2 -> 0.00154157164 | AG6: =$H$4*AB6^2 -> 0.07814130373
A7: D @max delQ | B7: 0.5 | D7: IL | E7: =W15 -> 0.32 | I7: ILD | J7: =U46 -> 0.32 | L7: Thermal-MOS-(Cap loss) (W) | M7: =(LowSide_Cgs*VIN^2+0.5*LowSide_Cds*VIN^2+LowSide_Cgd*(VIN+VO)*VO)*FS/1000000000000 -> 0.3799470061 | O7: 0 | P7: =O7*TS -> 0 | Q7: =P7*1000000 -> 0 | R7: =IF(Ivalley>=0,Ivalley,0) -> 0.05276241732 | V7: 2 | W7: 0.32 | X7: =(VO*ILOAD+AC6+AD6+AE6+AF6+AG6)/VIN -> 0.1243763576 | Y7: 0.3886761176 | Z7: 0.5353130165 | AA7: =IF(W7-Z7/2>0, W7-Z7/2,0) -> 0.05234349175 | AB7: 0.3553589764 | AC7: 0.06276005599 | AD7: =AB7^2*RDS_ON*(Y7) -> 0.007362303144 | AE7: 0.1455334752 | AF7: 0.001557032426 | AG7: =$H$4*AB7^2 -> 0.07892500133
A8: Iomax | B8: 4 | D8: D` | E8: =1-D_ccm -> 0.6119322232 | I8: D2 | J8: =Z46 -> 0.6917066613 | L8: Thermal-Diode-(conduction)(W) | M8: =IF(Ivalley>=0,ILOAD^2*(1+(Ipp^2/ILOAD^2)/12)*RD*D+VD*ILOAD*D,ILOAD^2*(1+(Ipeak^2/ILOAD^2)/12)*RD*D2_+VD*ILOAD*D2_) -> 0.1456778414 | O8: =IF(Ivalley>=0,Dbar,D1_) -> 0.3880677768 | P8: 3.880677768e-07 | Q8: =P8*1000000 -> 0.3880677768 | R8: =IF(Ivalley>=0,Ivalley+Ipp,Ipeak) -> 0.5872375827 | V8: 3 | W8: 0.32 | X8: 0.1241695389 | Y8: 0.3880298091 | Z8: 0.5344228735 | AA8: =IF(W8-Z8/2>0, W8-Z8/2,0) -> 0.05278856327 | AB8: 0.3552473091 | AC8: 0.06329369851 | AD8: 0.007345442157 | AE8: 0.1456868516 | AF8: 0.001556054022 | AG8: 0.07887540665
A9: required Vin_rip | B9: =B6*0.01 -> 0.65 | D9: Ipp | E9: =(VIN-VO)*Dbar/L/FS -> 0.5344751654 | F9: Irms | G9: =AB26 -> 0.3552538649 | I9: Ipeak | J9: =Y46 -> 0.579775947 | L9: Thermal-Diode-(cap loss)(W) | M9: =Cdiode*VIN^2*FS/1000000000000 -> 0.18432 | O9: =IF(Ivalley>=0,1,D1_+D2_) -> 1 | P9: 1e-06 | Q9: 1 | R9: =IF(Ivalley>=0,Ivalley,0) -> 0.05276241732 | V9: 4 | W9: 0.32 | X9: 0.1241824469 | Y9: 0.3880701467 | Z9: 0.5344784293 | AA9: 0.05276078536 | AB9: 0.3552542741 | AC9: 0.06326039269 | AD9: 0.007346493814 | AE9: 0.145677279 | AF9: 0.001556115039 | AG9: 0.07887849955
A10: fsw_min | B10: 100000 | D10: Ivalley | E10: =IL-Ipp/2 -> 0.05276241732 | F10: Ipeak | G10: =IL+Ipp/2 -> 0.5872375827 | I10: D3 | J10: =1-D1_-D2_ -> -0.1126660948 | L10: Thermal-Inductor-(conduction)(W) | M10: =IF(Ivalley>=0,ILOAD^2*(1+(Ipp^2/ILOAD^2)/12)*RL,ILOAD^2*(1+(Ipeak^2/ILOAD^2)/12)*RL) -> 0.001556111454 | O10: 1 | P10: 1e-06 | Q10: 1 | R10: =IF(Ivalley>=0, Ivalley,0) -> 0.05276241732 | V10: 5 | W10: 0.32 | X10: 0.1241816413 | Y10: 0.3880676289 | Z10: 0.5344749616 | AA10: 0.05276251918 | AB10: 0.3552538394 | AC10: 0.06326247155 | AD10: 0.007346428169 | AE10: 0.1456778765 | AF10: 0.00155611123 | AG10: 0.07887830649
A11: Vo_max | B11: 60 | D11: CCM | I11: DCM | L11: Thermal-Inductor-(AC loss)(W) | M11: =18.1*10^(-6)*FS^1.155*(0.06374*IF(Ivalley>=0,Ipeak_ccm,Ipeak))^2.378/10 -> 0.006234616842 | O11: =IF(Ivalley>=0,1+Dbar,1+D1_) -> 1.388067777 | P11: 1.388067777e-06 | Q11: 1.388067777 | R11: =IF(Ivalley>=0, Ivalley+Ipp,Ipeak) -> 0.5872375827 | V11: 6 | W11: 0.32 | X11: 0.1241816915 | Y11: 0.3880677861 | Z11: 0.5344751781 | AA11: 0.05276241096 | AB11: 0.3552538665 | AC11: 0.06326234179 | AD11: 0.007346432267 | AE11: 0.1456778392 | AF11: 0.001556111468 | AG11: 0.07887831854
D12: Ripple_pp | E12: =Ipp/(8*FS*T4)+Ipp*U4^2*T4*FS/(2*Dbar*D) -> 0.01474367834 | I12: Ripple_pp | J12: =(0.5*ILOAD^2*D1_*TS/Ipeak+0.5*ILOAD*(Ipeak-ILOAD)*D2_*TS/Ipeak+ILOAD*TS*J10)/T4+Ipeak*U4 -> 0.01658717102 | L12: Thermal-RSENSE(W) | M12: =IF(Ivalley>=0,ILOAD^2*(1+(Ipp^2/ILOAD^2)/12)*Rsense,ILOAD^2*(1+(Ipeak^2/ILOAD^2)/12)*Rsense) -> 0.07887831783 | O12: =IF(Ivalley>=0,2,1+D1_+D2_) -> 2 | P12: 2e-06 | Q12: 2 | R12: =IF(Ivalley>=0, Ivalley,0) -> 0.05276241732 | V12: 7 | W12: 0.32 | X12: 0.1241816884 | Y12: 0.3880677763 | Z12: 0.5344751646 | AA12: 0.05276241772 | AB12: 0.3552538648 | AC12: 0.06326234989 | AD12: 0.007346432011 | AE12: 0.1456778415 | AF12: 0.001556111453 | AG12: 0.07887831779
A13: CCM | L13: Thermal-Headroom(W) | M13: =ILOAD*Vhead_V -> 0 | O13: 2 | P13: 2e-06 | Q13: 2 | R13: =IF(Ivalley>=0, Ivalley,0) -> 0.05276241732 | V13: 8 | W13: 0.32 | X13: 0.1241816886 | Y13: 0.3880677769 | Z13: 0.5344751654 | AA13: 0.05276241729 | AB13: 0.3552538649 | AC13: 0.06326234939 | AD13: 0.007346432027 | AE13: 0.1456778414 | AF13: 0.001556111454 | AG13: 0.07887831784
A14: Cin_mlcc | B14: =B7*(1-B7)*B8/(B10*B9) -> 1.538461538e-05 | L14: Quiescent loss (W) | M14: =Quiescent_current*VIN/1000 -> 0.096 | V14: 9 | W14: 0.32 | X14: 0.1241816886 | Y14: 0.3880677768 | Z14: 0.5344751654 | AA14: 0.05276241732 | AB14: 0.3552538649 | AC14: 0.06326234942 | AD14: 0.007346432026 | AE14: 0.1456778414 | AF14: 0.001556111454 | AG14: 0.07887831783
A15: Icin_rms_max | B15: =B8*(B7*(1-B7)+(1/12)*(B11/(L*B10*B8))^2*(1-B7)^2*B7)^0.5 -> 3.427525913 | C15: =(B7*((1-B7)*B8^2+Ipeak^2/12))^0.5 -> 2.0034984 | D15: Diode ESC | E15: Cdiode | F15: 80 | G15: pF | L15: Total device loss(W) | M15: =SUM(M5:M7)+M14 -> 0.8097307986 | O15: VIN: | P15: Input Voltage of Buck | V15: 10 | W15: 0.32 | X15: 0.1241816886 | Y15: 0.3880677768 | Z15: 0.5344751654 | AA15: 0.05276241732 | AB15: 0.3552538649 | AC15: 0.06326234941 | AD15: 0.007346432026 | AE15: 0.1456778414 | AF15: 0.001556111454 | AG15: 0.07887831783
D16: Low side switching Cgs | E16: LowSide Cgs | F16: =90/RDS_ON/5 -> 120 | G16: pF | L16: Thermal rise (deg) | M16: =M15*Q4 -> 24.29192396 | O16: VO: | P16: Output Voltage of Buck | W16: 0.32 | X16: 0.1241816886 | Y16: 0.3880677768 | Z16: 0.5344751654 | AA16: 0.05276241732 | AB16: 0.3552538649 | AC16: 0.06326234941 | AD16: 0.007346432026 | AE16: 0.1456778414 | AF16: 0.001556111454 | AG16: 0.07887831783
A17: transient | D17: Low side switching Cgd | E17: LowSide Cgd | F17: =190/RDS_ON/SQRT((60+5)*5) -> 70.26202486 | G17: pF | L17: Estimated device temperature(deg) | M17: =M16+C4 -> 49.29192396 | O17: RL: | P17: Inductor DC resistance | W17: 0.32 | X17: 0.1241816886 | Y17: 0.3880677768 | Z17: 0.5344751654 | AA17: 0.05276241732 | AB17: 0.3552538649 | AC17: 0.06326234941 | AD17: 0.007346432026 | AE17: 0.1456778414 | AF17: 0.001556111454 | AG17: 0.07887831783
A18: Vin_tran | B18: 1 | D18: Low side switching Cds | E18: LowSide Cds | F18: =170/RDS_ON/60 -> 18.88888889 | G18: pF | L18: Total system loss (W) | M18: =SUM(M5:M12)+M14 -> 1.226397686 | O18: RSD(ON): | P18: Buck Switching FET DC resistance | W18: 0.32 | X18: 0.1241816886 | Y18: 0.3880677768 | Z18: 0.5344751654 | AA18: 0.05276241732 | AB18: 0.3552538649 | AC18: 0.06326234941 | AD18: 0.007346432026 | AE18: 0.1456778414 | AF18: 0.001556111454 | AG18: 0.07887831783
A19: ESR | B19: =B18/((4/0.9)*0.9) -> 0.25 | D19: IC Quiescent current | E19: Quiescent current | F19: 2 | G19: mA | L19: Efficiency Boost | M19: =ILOAD*(VO+Vhead_V)/(ILOAD*(VO+Vhead_V)+M18) -> 0.8220135119 | O19: RD: | P19: Diode DC resistance | W19: 0.32 | X19: 0.1241816886 | Y19: 0.3880677768 | Z19: 0.5344751654 | AA19: 0.05276241732 | AB19: 0.3552538649 | AC19: 0.06326234941 | AD19: 0.007346432026 | AE19: 0.1456778414 | AF19: 0.001556111454 | AG19: 0.07887831783
A20: Cin_bulk | B20: =(0.5*(4/0.9)*0.9*0.00004176/B18)-B14 -> 6.813538462e-05 | L20: Efficiency LED | M20: =ILOAD*VO/(ILOAD*(VO+Vhead_V)+M18) -> 0.8220135119 | O20: VD: | P20: Diode forword voltage | W20: 0.32 | X20: 0.1241816886 | Y20: 0.3880677768 | Z20: 0.5344751654 | AA20: 0.05276241732 | AB20: 0.3552538649 | AC20: 0.06326234941 | AD20: 0.007346432026 | AE20: 0.1456778414 | AF20: 0.001556111454 | AG20: 0.07887831783
A21: Icb_rms | B21: =((3)^0.5/6)*B9/B19 -> 0.7505553499 | O21: ILOAD: | P21: Total load at Buck output | W21: 0.32 | X21: 0.1241816886 | Y21: 0.3880677768 | Z21: 0.5344751654 | AA21: 0.05276241732 | AB21: 0.3552538649 | AC21: 0.06326234941 | AD21: 0.007346432026 | AE21: 0.1456778414 | AF21: 0.001556111454 | AG21: 0.07887831783
O22: L: | P22: Inductance value of inductor | W22: 0.32 | X22: 0.1241816886 | Y22: 0.3880677768 | Z22: 0.5344751654 | AA22: 0.05276241732 | AB22: 0.3552538649 | AC22: 0.06326234941 | AD22: 0.007346432026 | AE22: 0.1456778414 | AF22: 0.001556111454 | AG22: 0.07887831783
A23: Co | B23: =Ipp/(8*B11*0.01*B10) -> 1.113489928e-06 | O23: FS: | P23: Swithing Frequency | W23: 0.32 | X23: 0.1241816886 | Y23: 0.3880677768 | Z23: 0.5344751654 | AA23: 0.05276241732 | AB23: 0.3552538649 | AC23: 0.06326234941 | AD23: 0.007346432026 | AE23: 0.1456778414 | AF23: 0.001556111454 | AG23: 0.07887831783
A24: Cout_overshoot | B24: =B8^2*L/((12+2)^2-12^2) -> 6.769230769e-06 | W24: 0.32 | X24: 0.1241816886 | Y24: 0.3880677768 | Z24: 0.5344751654 | AA24: 0.05276241732 | AB24: 0.3552538649 | AC24: 0.06326234941 | AD24: 0.007346432026 | AE24: 0.1456778414 | AF24: 0.001556111454 | AG24: 0.07887831783
A25: Cout_undershoot | B25: =4*B8/(2*FS) -> 8e-06 | W25: 0.32 | X25: 0.1241816886 | Y25: 0.3880677768 | Z25: 0.5344751654 | AA25: 0.05276241732 | AB25: 0.3552538649 | AC25: 0.06326234941 | AD25: 0.007346432026 | AE25: 0.1456778414 | AF25: 0.001556111454 | AG25: 0.07887831783
A26: Icap_rms | B26: =Ipp/(12)^0.5 -> 0.1542896903 | W26: 0.32 | X26: 0.1241816886 | Y26: 0.3880677768 | Z26: 0.5344751654 | AA26: 0.05276241732 | AB26: 0.3552538649 | AC26: 0.06326234941 | AD26: 0.007346432026 | AE26: 0.1456778414 | AF26: 0.001556111454 | AG26: 0.07887831783
A27: ESR_power | B27: =0.005*B11*B8/(B26)^2 -> 50.40892448
U32: DCM
T33: Iin | U33: IL | V33: Von | W33: Voff | X33: D1 | Y33: Ipp | Z33: D2 | AA33: D3 | AB33: Ivalley | AC33: MOS Dyn Loss | AD33: MOS Const | AE33: Diode loss | AF33: Inductor loss | AG33: Rsense loss
T34: =VO*ILOAD/VIN -> 0.118 | U34: =ILOAD -> 0.32 | V34: =VIN-VO-T34*(RL+RDS_ON+Rsense) -> 30.20709506 | W34: =VO+T34*(RL+Rsense+RD)+VD -> 18.51638494 | X34: =(2*ILOAD*L*FS*W34/(V34*(V34+W34)))^0.5 -> 0.4208775851 | Y34: =(VIN-VO)*X34/L/FS -> 0.5796632195 | Z34: =Y34*L/(VO+VD)/TS -> 0.6915721707 | AA34: =1-X34-Z34 -> -0.1124497558 | AB34: =IF(U34-Y34/2>0, U34-Y34/2,0) -> 0.03016839027 | AC34: =(VIN+VD)*AB34*FS*R$4 -> 0.03617202061 | AD34: =(U34*U34+Y34*Y34/12)*RDS_ON*X34 -> 0.00823241527 | AE34: =(U34*U34+Y34*Y34/12)*RD*Z34+U34*Z34*VD -> 0.1646661056 | AF34: =(U34*U34+Y34*Y34/12)*RL -> 0.001607841708 | AG34: =(U34*U34+Y34*Y34/12)*Rsense -> 0.08150049208
T35: =(VO*ILOAD+AC34+AD34+AE34+AF34+AG34)/VIN -> 0.1240870599 | U35: 0.32 | V35: 30.20230254 | W35: 18.52032528 | X35: 0.4209594408 | Y35: 0.5797759571 | Z35: 0.6917066734 | AA35: =1-X35-Z35 -> -0.1126661142 | AB35: =IF(U35-Y35/2>0, U35-Y35/2,0) -> 0.03011202143 | AC35: 0.03610443414 | AD35: 0.008234704186 | AE35: 0.1646982066 | AF35: 0.001607976015 | AG35: 0.08150730003
T36: 0.1240865129 | U36: 0.32 | V36: 30.20230297 | W36: 18.52032492 | X36: 0.4209594335 | Y36: 0.579775947 | Z36: 0.6917066613 | AA36: -0.1126660948 | AB36: 0.03011202649 | AC36: 0.03610444021 | AD36: 0.00823470398 | AE36: 0.1646982037 | AF36: 0.001607976003 | AG36: 0.08150729941
T37: 0.124086513 | U37: 0.32 | V37: 30.20230297 | W37: 18.52032492 | X37: 0.4209594335 | Y37: 0.579775947 | Z37: 0.6917066613 | AA37: -0.1126660948 | AB37: 0.03011202649 | AC37: 0.03610444021 | AD37: 0.008234703981 | AE37: 0.1646982037 | AF37: 0.001607976003 | AG37: 0.08150729941
T38: 0.124086513 | U38: 0.32 | V38: 30.20230297 | W38: 18.52032492 | X38: 0.4209594335 | Y38: 0.579775947 | Z38: 0.6917066613 | AA38: -0.1126660948 | AB38: 0.03011202649 | AC38: 0.03610444021 | AD38: 0.008234703981 | AE38: 0.1646982037 | AF38: 0.001607976003 | AG38: 0.08150729941
T39: 0.124086513 | U39: 0.32 | V39: 30.20230297 | W39: 18.52032492 | X39: 0.4209594335 | Y39: 0.579775947 | Z39: 0.6917066613 | AA39: -0.1126660948 | AB39: 0.03011202649 | AC39: 0.03610444021 | AD39: 0.008234703981 | AE39: 0.1646982037 | AF39: 0.001607976003 | AG39: 0.08150729941
T40: 0.124086513 | U40: 0.32 | V40: 30.20230297 | W40: 18.52032492 | X40: 0.4209594335 | Y40: 0.579775947 | Z40: 0.6917066613 | AA40: -0.1126660948 | AB40: 0.03011202649 | AC40: 0.03610444021 | AD40: 0.008234703981 | AE40: 0.1646982037 | AF40: 0.001607976003 | AG40: 0.08150729941
T41: 0.124086513 | U41: 0.32 | V41: 30.20230297 | W41: 18.52032492 | X41: 0.4209594335 | Y41: 0.579775947 | Z41: 0.6917066613 | AA41: -0.1126660948 | AB41: 0.03011202649 | AC41: 0.03610444021 | AD41: 0.008234703981 | AE41: 0.1646982037 | AF41: 0.001607976003 | AG41: 0.08150729941
T42: 0.124086513 | U42: 0.32 | V42: 30.20230297 | W42: 18.52032492 | X42: 0.4209594335 | Y42: 0.579775947 | Z42: 0.6917066613 | AA42: -0.1126660948 | AB42: 0.03011202649 | AC42: 0.03610444021 | AD42: 0.008234703981 | AE42: 0.1646982037 | AF42: 0.001607976003 | AG42: 0.08150729941
T43: 0.124086513 | U43: 0.32 | V43: 30.20230297 | W43: 18.52032492 | X43: 0.4209594335 | Y43: 0.579775947 | Z43: 0.6917066613 | AA43: -0.1126660948 | AB43: 0.03011202649 | AC43: 0.03610444021 | AD43: 0.008234703981 | AE43: 0.1646982037 | AF43: 0.001607976003 | AG43: 0.08150729941
T44: 0.124086513 | U44: 0.32 | V44: 30.20230297 | W44: 18.52032492 | X44: 0.4209594335 | Y44: 0.579775947 | Z44: 0.6917066613 | AA44: -0.1126660948 | AB44: 0.03011202649 | AC44: 0.03610444021 | AD44: 0.008234703981 | AE44: 0.1646982037 | AF44: 0.001607976003 | AG44: 0.08150729941
T45: 0.124086513 | U45: 0.32 | V45: 30.20230297 | W45: 18.52032492 | X45: 0.4209594335 | Y45: 0.579775947 | Z45: 0.6917066613 | AA45: -0.1126660948 | AB45: 0.03011202649 | AC45: 0.03610444021 | AD45: 0.008234703981 | AE45: 0.1646982037 | AF45: 0.001607976003 | AG45: 0.08150729941
T46: 0.124086513 | U46: 0.32 | V46: 30.20230297 | W46: 18.52032492 | X46: 0.4209594335 | Y46: 0.579775947 | Z46: 0.6917066613 | AA46: -0.1126660948 | AB46: 0.03011202649 | AC46: 0.03610444021 | AD46: 0.008234703981 | AE46: 0.1646982037 | AF46: 0.001607976003 | AG46: 0.08150729941

Sheet thermal foldback (hidden)
Z2: Userinput
P3: Tth | Q3: 80 | R3: 90 | S3: 100 | T3: 110 | U3: 120 | V3: 130 | W3: 140 | X3: 150 | Z3: ='Main Table'!D34 -> 105
P4: resistor value | Q4: 200 | R4: 100 | S4: 60 | T4: 40 | U4: 28 | V4: 20 | W4: 15 | X4: 10
Q5: =0.00003286*Q3^4-0.0166029*Q3^3+3.13838068*Q3^2-263.88083514*Q3+8378.7635 -> 199.1938408 | R5: =0.00003286*R3^4-0.0166029*R3^3+3.13838068*R3^2-263.88083514*R3+8378.7635 -> 102.8023454 | S5: 57.586786 | T5: 38.8505626 | U5: 29.7834752 | V5: 21.4617238 | W5: 12.8479084 | X5: 10.791029 | Z5: 46.1442323

Sheet frequency setting (hidden)
B19: fs | C19: R | E19: Userinput
B20: 0.1 | C20: 160 | E20: ='Main Table'!D17 -> 1 | F20: =VLOOKUP(E20,B20:C30,2,0) -> 21
B21: 0.2 | C21: 95
B22: 0.3 | C22: 67
B23: 0.4 | C23: 52
B24: 0.6 | C24: 35
B25: 0.8 | C25: 27
B26: 1 | C26: 21
B27: 1.2 | C27: 18
B28: 1.5 | C28: 14
B29: 1.8 | C29: 11
B30: 2.2 | C30: 9.2
